bitfinex/quotes_ETHUSD_20240607
["timestamp","ask_amount","ask_price","bid_price","bid_amount"]
[1717766484389,2.62496,3809.6,3808.8,0.04311293]
[1717766484630,2.62496,3809.6,3808.9,0.51673329]
[1717766484925,2.62496,3809.6,3809.0,0.04305693]
[1717766485329,2.62514,3809.4,3809.0,0.04305693]
[1717766485534,2.62514,3809.4,3809.0,0.56840102]
[1717766485826,2.62514,3809.4,3809.1,0.04303485]
[1717766488632,0.1255309,3809.7,3809.2,2.4864]
[1717766489017,2.625,3809.6,3809.3,0.04276587]
[1717766489406,2.625,3809.6,3809.0,3.05480102]
[1717766489737,2.625,3809.6,3809.1,0.3054801]
[1717766489935,2.625,3809.6,3809.1,0.34829013]
[1717766490999,0.1255309,3809.7,3809.1,0.34829013]
[1717766491499,0.1255309,3809.7,3809.2,2.62521]
[1717766491733,0.1255309,3809.7,3809.3,0.0426665]
[1717766491999,0.1255309,3809.7,3809.4,0.29733566]
[1717766492342,0.1255309,3809.7,3809.4,0.33998008]
[1717766492831,0.1255309,3809.7,3809.5,2.2808]
[1717766493246,0.1255309,3809.7,3809.6,0.042605]
[1717766498545,0.1255309,3809.7,3809.6,0.592605]
[1717766498781,0.1255309,3809.7,3809.6,1.25078507]
[1717766500048,0.1255309,3809.7,3809.6,3.54798507]
[1717766500546,0.1255309,3809.7,3809.6,4.33398507]
[1717766500744,0.1255309,3809.7,3809.6,6.54798507]
[1717766500944,0.1255309,3809.7,3809.6,7.33398507]
[1717766501507,0.1255309,3809.7,3809.6,6.54798507]
[1717766501711,0.1255309,3809.7,3809.6,7.33398507]
[1717766502043,0.1255309,3809.7,3809.6,6.54798507]
[1717766502243,0.1255309,3809.7,3809.6,7.33398507]
[1717766503971,0.1255309,3809.7,3809.6,6.54798507]
[1717766504144,0.1255309,3809.7,3809.6,7.33398507]
[1717766507594,0.1255309,3809.7,3809.6,6.54798507]
[1717766507727,0.1255309,3809.7,3809.6,7.33398507]
[1717766508132,0.1255309,3809.7,3809.6,6.06958507]
[1717766508377,0.1255309,3809.7,3809.6,6.85558507]
[1717766509837,0.1255309,3809.7,3809.6,7.40558507]
[1717766510755,0.1255309,3809.7,3809.6,6.61958507]
[1717766510958,0.1255309,3809.7,3809.6,7.40558507]
[1717766511875,0.1255309,3809.7,3809.6,6.61958507]
[1717766512247,0.1255309,3809.7,3809.6,7.40558507]
[1717766512965,0.1255309,3809.7,3809.6,6.61958507]
[1717766513332,0.1255309,3809.7,3809.6,0.70078507]
[1717766513572,0.1255309,3809.7,3809.6,0.042605]
[1717766514070,0.1255309,3809.7,3809.4,0.29733566]
[1717766514293,0.1255309,3809.7,3809.6,0.03804987]
[1717766514437,0.1255309,3809.7,3809.5,0.03682134]
[1717766514636,0.1255309,3809.7,3809.6,0.03680913]
[1717766514952,0.1255309,3809.7,3809.6,0.33341448]
[1717766515173,0.1255309,3809.7,3809.6,0.37022361]
[1717766515971,0.1255309,3809.7,3809.6,0.03680913]
[1717766516276,2.5944309,3809.7,3809.6,0.03680913]
[1717766516477,3.3804309,3809.7,3808.3,12.18]
[1717766516717,0.786,3809.0,3808.3,12.18]
[1717766516876,3.41128,3809.2,3808.8,0.03343273]
[1717766517035,0.786,3809.0,3808.8,0.03343273]
[1717766517239,0.786,3809.0,3808.7,7.43]
[1717766517462,3.41136,3809.0,3808.9,0.03223731]
[1717766517637,3.41136,3809.0,3808.8,0.03225939]
[1717766517835,3.41136,3809.0,3808.9,0.03223731]
[1717766517836,2.62536,3809.0,3808.9,0.03223731]
[1717766518091,3.116326,3809.0,3808.9,0.03223731]
[1717766518253,2.2803,3808.4,3808.1,7.43]
[1717766518446,2.2803,3808.4,3807.5,7.43]
[1717766518642,2.2803,3808.4,3808.2,0.03239193]
[1717766518852,2.2803,3808.4,3807.5,7.43]
[1717766519061,2.2803,3808.4,3808.3,0.03236984]
[1717766519386,2.2803,3808.4,3807.6,3.631917]
[1717766519751,2.2803,3808.4,3807.7,0.03143474]
[1717766520399,2.62574,3808.5,3807.7,0.03143474]
[1717766520982,2.62592,3808.2,3807.7,0.03143474]
[1717766521579,2.62592,3808.2,3807.5,7.43]
[1717766521781,2.62592,3808.2,3807.8,0.02472642]
[1717766522104,2.2666,3808.1,3807.5,8.435654]
[1717766522312,2.2666,3808.1,3807.9,0.03449682]
[1717766522517,2.2666,3808.1,3807.5,7.43]
[1717766522692,2.62607,3808.0,3807.5,7.43]
[1717766523235,2.62584,3808.4,3807.5,8.435654]
[1717766525478,2.62584,3808.4,3807.7,2.62621]
[1717766526519,2.62584,3808.4,3807.5,8.435654]
[1717766528210,2.6261,3808.0,3807.5,8.435654]
[1717766528420,4.96893,3807.8,3807.5,7.43]
[1717766529501,2.89878766,3808.8,3807.5,7.43]
[1717766529502,2.62585,3808.3,3807.5,7.43]
[1717766529718,2.62565,3808.6,3807.6,2.6263]
[1717766530036,2.62544,3808.9,3807.8,2.62612]
[1717766530393,2.62544,3808.9,3808.0,2.626]
[1717766532231,2.3427,3809.0,3808.2,2.62585]
[1717766532434,2.3427,3809.0,3808.3,0.262585]
[1717766533247,2.3427,3809.0,3808.4,2.62572]
[1717766533394,2.3427,3809.0,3808.0,2.62603]
[1717766533395,2.62545,3808.9,3808.0,2.62603]
[1717766533598,2.62561,3808.7,3807.7,1.00563]
[1717766533908,2.62561,3808.7,3807.7,4.00563]
[1717766535151,2.62561,3808.7,3807.8,2.62616]
[1717766535430,4.96806,3809.0,3808.1,2.62595]
[1717766535591,2.62554,3808.8,3808.1,2.62595]
[1717766535792,2.62568,3808.6,3807.7,6.63182]
[1717766535992,2.62568,3808.6,3807.8,1.406182]
[1717766536596,2.62568,3808.6,3807.7,5.62619]
[1717766537098,2.3274,3808.5,3807.7,5.62619]
[1717766537837,2.62568,3808.6,3807.7,5.62619]
[1717766538198,2.3905,3808.8,3808.0,2.62599]
[1717766539203,2.62557,3808.7,3808.0,2.62599]
[1717766540005,2.62557,3808.7,3808.0,3.188589]
[1717766541053,2.62536,3809.0,3808.2,2.62586]
[1717766546947,2.62552,3808.8,3808.2,2.62586]
[1717766548430,2.62552,3808.8,3808.0,0.562599]
[1717766548644,2.62552,3808.8,3807.8,2.62614]
[1717766548645,2.62567,3808.6,3807.8,2.62614]
[1717766548945,2.4096,3809.1,3807.7,3.0]
[1717766548946,2.62575,3808.5,3807.7,5.62623]
[1717766549543,2.62554,3808.8,3807.7,3.0]
[1717766549705,2.62554,3808.8,3807.6,5.3625]
[1717766550032,4.88359,3808.4,3807.7,1.27925]
[1717766550228,4.88359,3808.4,3807.7,3.0]
[1717766550820,4.88359,3808.4,3807.6,3.0]
[1717766551019,2.62595,3808.2,3807.5,10.05635]
[1717766551219,2.62595,3808.2,3807.5,2.62635]
[1717766551407,2.62612,3807.9,3807.2,2.62658]
[1717766551732,2.62612,3807.9,3807.3,2.464078]
[1717766553207,2.62612,3807.9,3807.1,7.43]
[1717766553607,2.2578,3808.4,3807.1,7.43]
[1717766553608,2.62628,3807.7,3807.1,7.43]
[1717766554251,2.3319,3807.6,3807.1,7.43]
[1717766554751,2.62642,3807.5,3807.1,7.43]
[1717766556344,2.62642,3807.5,3807.0,0.41133895]
[1717766558044,2.62642,3807.5,3806.7,2.3247]
[1717766558249,2.62642,3807.5,3806.7,2.456168]
[1717766558758,2.62657,3807.3,3806.7,2.456168]
[1717766560661,2.6267,3807.1,3806.6,7.43]
[1717766560868,2.6267,3807.1,3806.3,2.62718]
[1717766561062,2.62684,3806.9,3806.1,9.7058]
[1717766561221,2.62698,3806.7,3806.1,7.43]
[1717766561410,2.62698,3806.7,3806.2,1.005739]
[1717766561609,2.62698,3806.7,3806.1,7.43]
[1717766562653,2.4973,3806.9,3806.1,7.43]
[1717766562654,2.62711,3806.5,3806.1,7.43]
[1717766564239,2.6269,3806.8,3806.1,10.05731]
[1717766564453,2.6269,3806.8,3806.2,2.2691]
[1717766564654,2.6269,3806.8,3806.2,1.232641]
[1717766565537,2.62707,3806.6,3806.2,1.232641]
[1717766567351,2.62707,3806.6,3806.1,7.43]
[1717766567942,2.62719,3806.4,3806.1,7.43]
[1717766570571,5.04798,3806.7,3806.1,7.43]
[1717766570867,5.04798,3806.7,3805.8,2.62752]
[1717766572486,2.62711,3806.5,3805.8,2.62752]
[1717766572667,2.62711,3806.5,3805.9,1.005752]
[1717766577954,2.62711,3806.5,3805.9,1.793752]
[1717766580675,2.62693,3806.8,3806.0,2.62743]
[1717766580879,2.62693,3806.8,3806.2,0.788]
[1717766582581,2.62693,3806.8,3806.2,3.41527]
[1717766582763,2.62693,3806.8,3806.2,3.8573722]
[1717766584052,2.3212,3807.0,3806.4,2.62714]
[1717766584384,2.3212,3807.0,3806.4,3.41514]
[1717766586556,2.3212,3807.0,3806.4,2.62714]
[1717766587180,2.62681,3806.9,3806.2,0.4421022]
[1717766591523,2.62681,3806.9,3806.1,2.6273]
[1717766593399,2.62697,3806.7,3806.1,2.6273]
[1717766594917,2.62697,3806.7,3806.1,3.4153]
[1717766595303,2.62697,3806.7,3806.1,2.6273]
[1717766600836,2.62677,3807.0,3806.3,2.62721]
[1717766601224,2.62677,3807.0,3806.3,3.12136594]
[1717766603548,2.62677,3807.0,3806.5,2.62707]
[1717766603708,0.56799976,3807.2,3806.5,2.62707]
[1717766604044,2.62659,3807.3,3806.7,2.62692]
[1717766604279,2.62636,3807.6,3806.8,3.0737]
[1717766604465,2.62636,3807.6,3806.8,2.2857]
[1717766604772,2.62636,3807.6,3806.9,2.6268]
[1717766605541,2.62649,3807.4,3806.8,2.2857]
[1717766605738,2.62649,3807.4,3806.6,2.62698]
[1717766606535,2.62649,3807.4,3806.8,2.62685]
[1717766607576,0.56791791,3807.6,3806.8,2.62685]
[1717766607777,2.62629,3807.7,3806.9,0.341485]
[1717766608282,2.62629,3807.7,3807.0,2.4018]
[1717766608692,2.62629,3807.7,3807.0,5.0285]
[1717766609275,3.41406,3808.0,3807.2,2.62655]
[1717766611375,2.62621,3807.8,3807.2,2.62655]
[1717766611577,3.41421,3807.8,3807.2,3.2423335]
[1717766611807,2.62621,3807.8,3807.2,3.2423335]
[1717766612287,0.788,3807.6,3806.9,2.62677]
[1717766612456,0.788,3807.4,3806.9,2.62677]
[1717766612640,2.3792,3807.5,3806.9,2.62677]
[1717766613166,2.3792,3807.5,3806.6,10.6085]
[1717766613167,2.62646,3807.4,3806.6,13.23548]
[1717766613465,2.62646,3807.4,3806.7,0.55]
[1717766615144,2.62646,3807.4,3806.6,13.23548]
[1717766615338,2.62663,3807.2,3806.6,7.43]
[1717766615765,1.35592458,3807.4,3806.6,7.43]
[1717766615766,2.6268,3807.0,3806.6,7.43]
[1717766615968,0.788,3806.7,3806.6,7.43]
[1717766617176,3.41494,3806.7,3806.6,7.43]
[1717766620566,3.41494,3806.7,3806.0,2.4632]
[1717766620888,3.41494,3806.7,3806.1,0.55]
[1717766621087,3.41494,3806.7,3806.1,1.59432]
[1717766621386,2.62672,3807.1,3806.1,5.00962]
[1717766621573,2.62672,3807.1,3806.5,0.788]
[1717766621786,2.62672,3807.1,3806.6,3.0421]
[1717766622302,2.62672,3807.1,3806.7,0.38301]
[1717766626807,2.6265,3807.4,3806.8,2.62686]
[1717766626990,2.6265,3807.4,3806.8,3.17686]
[1717766628012,2.62629,3807.7,3806.8,3.17686]
[1717766628210,2.62629,3807.7,3806.8,3.96486]
[1717766628419,2.62629,3807.7,3806.9,0.683997]
[1717766628600,3.41429,3807.7,3807.0,0.55]
[1717766629313,2.62629,3807.7,3807.0,0.55]
[1717766629612,2.62629,3807.7,3807.0,3.17671]
[1717766631415,2.62629,3807.7,3807.1,2.2995]
[1717766631576,2.62629,3807.7,3807.2,1.1660207]
[1717766633384,2.62629,3807.7,3807.2,3.7926007]
[1717766634334,0.788,3807.9,3807.2,3.7926007]
[1717766635124,2.62609,3808.0,3807.2,3.7926007]
[1717766635326,2.62609,3808.0,3807.4,2.62643]
[1717766635633,3.41409,3808.0,3807.4,3.23562507]
[1717766639435,0.788,3807.8,3807.4,0.60919507]
[1717766639745,0.788,3807.8,3807.2,0.55]
[1717766640331,3.41423,3807.8,3807.2,0.55]
[1717766640910,2.62634,3807.6,3807.1,2.62661]
[1717766641660,3.19380489,3808.2,3807.5,2.62636]
[1717766641890,2.62596,3808.2,3807.5,2.62636]
[1717766645263,0.788,3808.1,3807.5,2.62636]
[1717766646454,2.62605,3808.0,3807.5,2.62636]
[1717766648273,0.788,3808.1,3807.5,2.62636]
[1717766648565,0.788,3808.2,3807.5,3.11475457]
[1717766651267,0.788,3808.2,3807.7,2.62624]
[1717766651572,0.788,3808.2,3807.8,2.27]
[1717766653838,2.62589,3808.3,3807.8,2.27]
[1717766654287,3.19349146,3808.6,3807.9,2.62611]
[1717766654465,3.41368,3808.6,3807.9,2.62611]
[1717766656575,3.41368,3808.6,3808.1,2.62597]
[1717766656728,3.19329146,3808.9,3808.3,2.62583]
[1717766657134,2.62548,3808.9,3808.3,2.62583]
[1717766657360,3.41348,3808.9,3808.3,2.62583]
[1717766657666,2.62548,3808.9,3808.3,2.62583]
[1717766657830,0.788,3808.6,3808.0,2.62601]
[1717766658167,2.62548,3808.9,3808.1,0.57941198]
[1717766658352,0.788,3808.6,3808.1,0.57941198]
[1717766658561,0.788,3808.4,3808.0,2.62601]
[1717766658871,0.788,3808.1,3807.6,7.43]
[1717766659169,0.788,3808.1,3807.4,2.62643]
[1717766659170,3.41401,3808.1,3807.4,2.62643]
[1717766659338,3.41401,3808.1,3807.2,2.4824]
[1717766659339,0.788,3807.7,3807.2,2.4824]
[1717766660249,0.788,3807.7,3807.2,3.07740596]
[1717766660461,0.788,3807.7,3807.1,10.05664]
[1717766660661,0.788,3807.7,3807.1,7.43]
[1717766663293,2.62647,3807.4,3807.1,7.43]
[1717766664175,0.788,3807.2,3806.4,2.62713]
[1717766664439,0.788,3807.0,3806.2,7.43]
[1717766665280,2.362,3806.8,3805.8,19.61]
[1717766665517,0.788,3806.2,3805.8,19.61]
[1717766665736,0.788,3806.2,3805.7,2.62757]
[1717766666338,0.788,3806.2,3805.4,2.62783]
[1717766666512,0.788,3806.2,3805.5,1.252553]
[1717766667951,2.62712,3806.5,3805.5,1.252553]
[1717766668128,2.62712,3806.5,3805.4,2.62783]
[1717766668331,2.62712,3806.5,3805.5,0.55]
[1717766669739,2.6273,3806.2,3805.5,0.55]
[1717766672944,2.62709,3806.5,3805.6,2.62768]
[1717766673248,2.62709,3806.5,3805.9,2.2829]
[1717766673580,2.4561,3807.2,3806.0,0.546046]
[1717766673581,2.62688,3806.8,3806.0,0.546046]
[1717766673709,2.62688,3806.8,3805.8,2.62756]
[1717766673907,2.62707,3806.6,3805.8,2.62756]
[1717766677951,2.62682,3806.9,3806.0,2.62738]
[1717766678155,2.62682,3806.9,3806.1,0.812738]
[1717766679053,2.62682,3806.9,3806.1,3.084738]
[1717766680221,2.62682,3806.9,3806.1,2.822]
[1717766680623,2.62659,3807.3,3806.4,2.62711]
[1717766680824,2.62672,3807.1,3806.4,2.62711]
[1717766681054,3.124252,3807.1,3806.4,2.62711]
[1717766681256,2.62672,3807.1,3806.4,2.62711]
[1717766685226,2.62672,3807.1,3806.5,0.55]
[1717766685734,2.4502,3806.8,3805.8,7.43]
[1717766686137,2.6272,3806.4,3805.8,7.43]
[1717766686370,2.6272,3806.4,3805.8,2.223774]
[1717766686540,2.6272,3806.4,3805.5,2.62774]
[1717766688668,2.6272,3806.4,3805.6,0.55]
[1717766689931,2.6272,3806.4,3805.6,1.338]
[1717766691959,2.6272,3806.4,3805.7,2.62762]
[1717766692286,4.56591567,3813.4,3805.7,2.62762]
[1717766692287,3.19505494,3806.7,3806.0,0.788]
[1717766692488,2.62698,3806.7,3806.0,0.788]
[1717766693488,2.62698,3806.7,3806.1,2.62734]
[1717766696176,0.56800652,3807.5,3806.9,2.62678]
[1717766696374,0.788,3807.6,3807.0,2.251]
[1717766696693,2.4111,3808.1,3807.1,2.62665]
[1717766696694,3.19396869,3808.0,3807.1,2.62665]
[1717766696867,0.788,3807.4,3807.1,2.62665]
[1717766697265,0.788,3807.7,3807.1,2.62665]
[1717766697885,2.62609,3808.0,3807.1,2.62665]
[1717766698086,2.62609,3808.0,3807.3,2.6265]
[1717766701254,2.62588,3808.3,3807.5,2.62636]
[1717766701571,2.62566,3808.6,3807.9,2.62607]
[1717766704021,2.62566,3808.6,3807.6,2.6263]
[1717766706770,2.62582,3808.4,3807.6,2.6263]
[1717766706974,2.3996,3808.3,3807.3,2.62651]
[1717766707877,2.62609,3808.0,3807.3,2.62651]
[1717766708789,2.3061,3807.9,3807.3,2.62651]
[1717766710502,2.62609,3808.0,3807.3,2.62651]
[1717766721434,2.62609,3808.0,3807.0,2.62668]
[1717766721592,2.62609,3808.0,3807.1,0.55]
[1717766722035,2.62621,3807.8,3807.1,0.55]
[1717766722531,2.62621,3807.8,3807.3,2.2802]
[1717766723694,2.62602,3808.1,3807.3,2.2802]
[1717766724503,2.62613,3807.9,3807.3,2.2802]
[1717766724993,2.62613,3807.9,3807.4,2.62646]
[1717766725200,2.62613,3807.9,3807.4,3.172126]
[1717766725594,2.62595,3808.2,3807.4,3.172126]
[1717766727238,2.62595,3808.2,3807.6,2.62629]
[1717766727438,2.62595,3808.2,3807.7,2.3965]
[1717766728851,2.62575,3808.5,3807.8,2.62617]
[1717766735384,2.62631,3807.7,3807.4,7.43]
[1717766740254,2.62608,3808.0,3807.4,7.43]
[1717766740642,2.62608,3808.0,3807.2,4.94096]
[1717766740858,2.62608,3808.0,3807.3,0.55]
[1717766742160,2.62627,3807.7,3807.0,7.43]
[1717766742771,2.62608,3808.0,3807.0,7.43]
[1717766743056,2.62608,3808.0,3807.4,2.3748]
[1717766743258,2.62587,3808.3,3807.5,2.62634]
[1717766743455,2.62587,3808.3,3807.5,3.126454]
[1717766743696,2.62568,3808.6,3807.9,2.62609]
[1717766744956,2.62568,3808.6,3808.1,2.62595]
[1717766745162,2.62506,3809.5,3808.2,2.591695]
[1717766745163,2.62546,3808.9,3808.2,2.591695]
[1717766745382,2.62546,3808.9,3808.2,2.3291]
[1717766746259,2.62546,3808.9,3808.3,2.62581]
[1717766746465,2.62525,3809.2,3808.3,2.62581]
[1717766749059,2.62525,3809.2,3808.5,2.62565]
[1717766749409,2.62525,3809.2,3808.6,0.262565]
[1717766749602,2.62525,3809.2,3808.5,2.62565]
[1717766750772,2.62499,3809.6,3808.6,2.3011]
[1717766751309,2.62499,3809.6,3808.7,0.55]
[1717766751699,0.1255309,3809.7,3808.7,0.55]
[1717766751912,0.1255309,3809.7,3808.8,0.28511]
[1717766752282,0.1255309,3809.7,3808.9,0.55]
[1717766753075,0.1255309,3809.7,3809.4,2.62505]
[1717766755036,0.1255309,3809.7,3809.6,2.62494]
[1717766755183,0.1255309,3809.7,3809.6,3.17494]
[1717766755522,0.1255309,3809.7,3809.6,4.027044]
[1717766755819,0.1255309,3809.7,3809.6,7.027044]
[1717766756122,0.1255309,3809.7,3809.6,5.62494]
[1717766758120,0.1255309,3809.7,3809.6,6.17494]
[1717766759324,0.1255309,3809.7,3809.6,5.62494]
[1717766761827,0.1255309,3809.7,3809.6,6.17494]
[1717766762048,0.1255309,3809.7,3809.6,6.792434]
[1717766763189,0.1255309,3809.7,3809.2,2.62515]
[1717766763528,0.1255309,3809.7,3809.3,3.0]
[1717766763833,0.1255309,3809.7,3808.8,7.71511]
[1717766763834,0.1255309,3809.7,3809.4,2.62502]
[1717766764031,0.1255309,3809.7,3809.0,2.62529]
[1717766764836,0.1255309,3809.7,3809.1,3.0]
[1717766765143,0.1255309,3809.7,3809.1,4.33404]
[1717766765346,0.1255309,3809.7,3809.2,2.6252]
[1717766765547,0.1255309,3809.7,3809.3,3.0]
[1717766766118,0.1255309,3809.7,3809.2,2.6252]
[1717766767236,0.1255309,3809.7,3808.8,7.71511]
[1717766767237,0.1255309,3809.7,3808.9,2.62541]
[1717766767431,0.1255309,3809.7,3809.0,1.276472]
[1717766767595,0.1255309,3809.7,3809.0,4.276472]
[1717766768508,0.1255309,3809.7,3809.0,1.276472]
[1717766769311,0.1255309,3809.7,3809.3,2.6251]
[1717766770661,0.1255309,3809.7,3809.0,1.276472]
[1717766773233,0.1255309,3809.7,3808.9,5.62536]
[1717766773234,2.258,3809.6,3808.9,2.62536]
[1717766774044,4.88298,3809.6,3808.9,2.62536]
[1717766774864,4.88298,3809.6,3808.8,7.71511]
[1717766775173,4.88298,3809.6,3808.8,7.43]
[1717766775329,4.88298,3809.6,3808.8,10.05545]
[1717766779094,2.62511,3809.4,3808.8,10.05545]
[1717766779390,2.62511,3809.4,3808.8,7.43]
[1717766783183,2.62524,3809.2,3808.8,7.43]
[1717766784821,2.62524,3809.2,3808.4,2.62572]
[1717766785021,2.62524,3809.2,3808.6,2.62562]
[1717766785329,2.62507,3809.5,3808.8,2.62547]
[1717766785915,2.62507,3809.5,3809.0,2.62534]
[1717766786425,2.258,3809.6,3809.0,2.62534]
[1717766786731,0.1255309,3809.7,3809.1,0.262534]
[1717766786935,0.1255309,3809.7,3809.2,2.6252]
[1717766787141,0.1255309,3809.7,3809.4,2.62506]
[1717766787922,0.1255309,3809.7,3809.6,2.62494]
[1717766788297,0.1255309,3809.7,3809.6,3.17494]
[1717766788506,0.1255309,3809.7,3809.6,5.58414]
[1717766788730,0.1255309,3809.7,3809.6,9.142554]
[1717766795643,0.1255309,3809.7,3809.6,6.733354]
[1717766796377,0.1255309,3809.7,3809.6,6.183354]
[1717766798445,0.1255309,3809.7,3809.6,8.481254]
[1717766798949,0.1255309,3809.7,3809.6,6.183354]
[1717766800539,0.1255309,3809.7,3809.6,5.62494]
[1717766808677,0.1255309,3809.7,3809.6,6.17494]
[1717766811347,0.1255309,3809.7,3809.6,5.62494]
[1717766813307,2.5578309,3809.7,3809.3,2.6251]
[1717766813469,2.5578309,3809.7,3809.4,0.26251]
[1717766814007,2.5578309,3809.7,3809.5,2.62501]
[1717766814455,0.1255309,3809.7,3809.5,2.62501]
[1717766818554,0.1255309,3809.7,3809.6,0.55]
[1717766819455,0.1255309,3809.7,3809.6,3.55]
[1717766819615,0.1255309,3809.7,3809.6,4.697496]
[1717766820525,0.1255309,3809.7,3809.6,4.147496]
[1717766821024,0.1255309,3809.7,3809.6,3.0]
[1717766821224,0.1255309,3809.7,3809.5,2.62501]
[1717766832001,0.1255309,3809.7,3809.2,2.62518]
[1717766833707,2.2979,3809.6,3808.9,5.62539]
[1717766833877,2.2979,3809.6,3808.6,2.62561]
[1717766835499,2.62506,3809.5,3808.6,2.62561]
[1717766838420,2.2979,3809.6,3808.5,13.185572]
[1717766838421,2.62518,3809.3,3808.5,13.185572]
[1717766838595,2.62518,3809.3,3808.6,3.0]
[1717766838794,2.62518,3809.3,3808.7,2.62556]
[1717766839719,2.62518,3809.3,3808.6,5.5943572]
[1717766839720,4.9229,3809.6,3808.9,2.62541]
[1717766840019,4.9229,3809.6,3809.1,2.62525]
[1717766840020,2.2979,3809.6,3809.1,2.62525]
[1717766841181,2.2979,3809.6,3809.3,2.62513]
[1717766841378,0.1255309,3809.7,3809.3,2.887643]
[1717766841818,0.1255309,3809.7,3809.5,2.62497]
[1717766845265,0.1255309,3809.7,3809.1,2.62523]
[1717766846319,2.2803,3809.6,3809.1,2.62523]
[1717766846795,2.2803,3809.6,3808.7,2.62555]
[1717766846967,2.2803,3809.6,3808.8,3.0]
[1717766847528,4.90529,3809.6,3808.9,2.62542]
[1717766849653,2.2941,3809.3,3808.6,2.6256]
[1717766850348,2.62522,3809.2,3808.6,2.6256]
[1717766851927,2.62522,3809.2,3808.4,19.61]
[1717766852253,2.62537,3809.0,3808.4,7.43]
[1717766852569,2.4386,3808.9,3808.4,7.43]
[1717766853766,2.6255,3808.8,3808.0,2.62602]
[1717766855453,2.3208,3808.7,3808.0,2.62602]
[1717766855656,2.62565,3808.6,3807.9,7.43]
[1717766856167,2.62565,3808.6,3807.9,10.05608]
[1717766856366,3.120295,3808.6,3807.9,10.05608]
[1717766856987,2.62565,3808.6,3807.9,10.05608]
[1717766857985,2.62565,3808.6,3807.9,2.62608]
[1717766858948,2.62565,3808.6,3807.7,3.0]
[1717766859152,2.62565,3808.6,3807.8,3.0]
[1717766859351,2.62565,3808.6,3807.7,3.0]
[1717766859573,2.62565,3808.6,3807.6,2.6263]
[1717766859574,0.494645,3808.6,3807.6,2.6263]
[1717766859777,2.62524,3809.2,3807.5,7.43]
[1717766859778,2.4373,3808.5,3807.5,7.43]
[1717766859944,2.4373,3808.5,3807.7,2.62619]
[1717766862389,2.4373,3808.5,3807.9,2.62608]
[1717766862558,2.4326,3808.8,3808.1,2.62594]
[1717766865706,2.62557,3808.7,3808.1,2.62594]
[1717766866397,2.62557,3808.7,3807.8,2.62615]
[1717766868479,2.62557,3808.7,3807.6,2.4778]
[1717766868480,2.62557,3808.7,3808.0,2.62603]
[1717766868879,2.4326,3808.8,3808.2,2.62589]
[1717766870505,5.05811,3808.8,3808.2,2.62589]
[1717766871598,5.05811,3808.8,3807.9,2.62606]
[1717766872679,5.05811,3808.8,3808.1,2.62595]
[1717766873408,5.05811,3808.8,3808.1,2.888545]
[1717766874285,5.05811,3808.8,3808.1,2.62595]
[1717766880424,2.62551,3808.8,3807.5,7.43]
[1717766880629,2.62564,3808.6,3807.8,2.62615]
[1717766880794,2.4248,3808.5,3807.8,2.62615]
[1717766880994,2.4248,3808.5,3807.9,3.0]
[1717766882296,2.4248,3808.5,3808.0,0.562615]
[1717766882497,2.62546,3808.9,3808.0,0.562615]
[1717766882730,2.4248,3808.8,3808.0,0.562615]
[1717766883042,2.4248,3808.8,3807.9,2.2605]
[1717766883236,2.4248,3808.8,3808.2,2.62587]
[1717766884847,2.4248,3808.8,3808.4,2.62573]
[1717766884999,0.56768076,3809.5,3808.6,2.62558]
[1717766885000,2.2545,3809.1,3808.6,2.62558]
[1717766885201,2.2545,3809.4,3808.8,2.62548]
[1717766887819,2.2545,3809.4,3808.4,7.43]
[1717766888756,2.62542,3808.9,3808.4,7.43]
[1717766889847,4.87961,3809.4,3808.4,7.43]
[1717766890147,4.87961,3809.4,3808.4,8.173]
[1717766893270,2.62511,3809.4,3808.4,8.173]
[1717766893758,0.1255309,3809.7,3808.5,2.62569]
[1717766893961,0.1255309,3809.7,3808.7,2.62551]
[1717766894174,0.1255309,3809.7,3808.8,2.3346]
[1717766895035,0.1255309,3809.7,3808.9,2.6254]
[1717766896130,0.1255309,3809.7,3809.2,2.62516]
[1717766898227,0.1255309,3809.7,3809.5,2.62499]
[1717766932276,0.1255309,3809.7,3809.6,0.55]
[1717766942424,0.1255309,3809.7,3809.2,2.62517]
[1717766942624,0.1255309,3809.7,3809.4,2.62507]
[1717766942926,0.1255309,3809.7,3809.5,0.55]
[1717766943106,0.1255309,3809.7,3809.6,0.317507]
[1717766943420,0.1255309,3809.7,3809.6,0.867507]
[1717766943629,0.1255309,3809.7,3809.6,0.55]
[1717766943922,0.1255309,3809.7,3809.5,0.55]
[1717766944898,0.1255309,3809.7,3809.1,3.15869]
[1717766945123,0.1255309,3809.7,3809.3,2.62514]
[1717766946423,0.1255309,3809.7,3809.3,3.296]
[1717766946629,0.1255309,3809.7,3809.5,2.62499]
[1717766947042,0.1255309,3809.7,3809.6,0.55]
[1717766947193,0.1255309,3809.7,3809.5,2.62499]
[1717766949690,0.1255309,3809.7,3809.6,0.55]
[1717766949888,0.1255309,3809.7,3809.6,0.934585]
[1717766950288,0.1255309,3809.7,3809.5,2.62499]
[1717766952297,0.1255309,3809.7,3809.6,0.55]
[1717766957220,2.4579309,3809.7,3809.5,2.62499]
[1717766959022,2.4579309,3809.7,3809.2,5.62516]
[1717766959223,2.4579309,3809.7,3809.3,0.55]
[1717766960042,2.4579309,3809.7,3809.4,2.62508]
[1717766960211,2.4579309,3809.7,3809.5,0.55]
[1717766963058,0.1255309,3809.7,3809.6,2.62494]
[1717766963343,0.1255309,3809.7,3809.6,3.492434]